[Event "Early-Titled-Tuesday-Blitz-February-27-2024"]
[Site "Chess.com"]
[Date "2024.02.27"]
[Round "2"]
[White "GMSrinath"]
[Black "Talcrifice"]
[Result "1-0"]
[WhiteElo "2800"]
[BlackElo "2555"]
[TimeControl "180+1"]
[EndTime "8:13:34 PST"]
[Termination "GMSrinath won by resignation"]

1. e4 {[%clk 0:03:00.9]} 1... e5 {[%clk 0:02:59.2]} 2. Nf3 {[%clk 0:03:01.3]}
2... Nc6 {[%clk 0:02:59.6]} 3. Bb5 {[%clk 0:03:01.9]} 3... a6 {[%clk 0:02:59.5]}
4. Ba4 {[%clk 0:03:01]} 4... Nf6 {[%clk 0:02:59.6]} 5. d3 {[%clk 0:02:58]} 5...
b5 {[%clk 0:02:58.1]} 6. Bb3 {[%clk 0:02:57.7]} 6... Bc5 {[%clk 0:02:58.6]} 7.
O-O {[%clk 0:02:57.8]} 7... d6 {[%clk 0:02:58.5]} 8. c3 {[%clk 0:02:54.2]} 8...
O-O {[%clk 0:02:49.8]} 9. Bg5 {[%clk 0:02:52.7]} 9... h6 {[%clk 0:02:48.9]} 10.
Bh4 {[%clk 0:02:50.6]} 10... Bb6 {[%clk 0:02:30]} 11. Nbd2 {[%clk 0:02:49.2]}
11... Re8 {[%clk 0:02:27.2]} 12. Re1 {[%clk 0:02:49.4]} 12... Be6 {[%clk
0:02:27.2]} 13. Nf1 {[%clk 0:02:48.9]} 13... Bxb3 {[%clk 0:02:21.8]} 14. axb3
{[%clk 0:02:49.8]} 14... Re6 {[%clk 0:02:21.3]} 15. d4 {[%clk 0:02:37.4]} 15...
exd4 {[%clk 0:02:16.3]} 16. cxd4 {[%clk 0:02:38.3]} 16... Re8 {[%clk 0:02:13.1]}
17. Rc1 {[%clk 0:02:29.9]} 17... Nb4 {[%clk 0:02:08.1]} 18. Ng3 {[%clk
0:02:26.8]} 18... g6 {[%clk 0:01:45.5]} 19. Qd2 {[%clk 0:02:21.3]} 19... a5
{[%clk 0:01:42]} 20. Qxh6 {[%clk 0:02:20.4]} 20... Ng4 {[%clk 0:01:39.9]} 21.
Qf4 {[%clk 0:02:17.1]} 21... Qd7 {[%clk 0:01:40]} 22. Red1 {[%clk 0:02:07.5]}
22... Kg7 {[%clk 0:01:33.8]} 23. h3 {[%clk 0:02:05.3]} 23... Nh6 {[%clk
0:01:33.3]} 24. Bf6+ {[%clk 0:02:03.4]} 24... Kh7 {[%clk 0:01:31.3]} 25. Ng5+
{[%clk 0:02:00.4]} 1-0

[Event "Early-Titled-Tuesday-Blitz-February-27-2024"]
[Site "Chess.com"]
[Date "2024.02.27"]
[Round "2"]
[White "Canal_Showdrez"]
[Black "Misterfox120"]
[Result "0-1"]
[WhiteElo "1987"]
[BlackElo "2450"]
[TimeControl "180+1"]
[EndTime "8:13:34 PST"]
[Termination "Misterfox120 won by resignation"]

1. d4 {[%clk 0:01:00.6]} 1... d5 {[%clk 0:02:58.6]} 2. Nf3 {[%clk 0:00:59.6]}
2... Nf6 {[%clk 0:02:58.7]} 3. e3 {[%clk 0:00:48.6]} 3... c6 {[%clk 0:02:57.7]}
4. Bd3 {[%clk 0:00:47.8]} 4... Bg4 {[%clk 0:02:57.8]} 5. Nbd2 {[%clk 0:00:43.9]}
5... e6 {[%clk 0:02:57.9]} 6. c3 {[%clk 0:00:35.3]} 6... Bd6 {[%clk 0:02:53.4]}
7. h3 {[%clk 0:00:28.1]} 7... Bh5 {[%clk 0:02:52]} 8. O-O {[%clk 0:00:11.3]}
8... Nbd7 {[%clk 0:02:51.6]} 9. b3 {[%clk 0:00:10.7]} 9... O-O {[%clk
0:02:51.2]} 10. Bb2 {[%clk 0:00:11.6]} 10... e5 {[%clk 0:02:50.7]} 11. Re1
{[%clk 0:00:12.1]} 11... e4 {[%clk 0:02:50.4]} 0-1

[Event "Early-Titled-Tuesday-Blitz-February-27-2024"]
[Site "Chess.com"]
[Date "2024.02.27"]
[Round "2"]
[White "AlexeiShirov"]
[Black "VitaliyChayka"]
[Result "1-0"]
[WhiteElo "2854"]
[BlackElo "2499"]
[TimeControl "180+1"]
[EndTime "8:13:39 PST"]
[Termination "AlexeiShirov won by resignation"]

1. e4 {[%clk 0:03:00.9]} 1... d6 {[%clk 0:03:00.1]} 2. d4 {[%clk 0:02:59.9]}
2... Nf6 {[%clk 0:03:00.5]} 3. Nc3 {[%clk 0:03:00.1]} 3... e5 {[%clk 0:03:01]}
4. Nf3 {[%clk 0:02:59]} 4... Nbd7 {[%clk 0:03:01.2]} 5. g4 {[%clk 0:02:58.6]}
5... Nxg4 {[%clk 0:02:58.5]} 6. Rg1 {[%clk 0:02:58.6]} 6... Ngf6 {[%clk
0:02:59.1]} 7. Bc4 {[%clk 0:02:58.4]} 7... h6 {[%clk 0:02:56.2]} 8. Be3 {[%clk
0:02:53.7]} 8... c6 {[%clk 0:02:56.4]} 9. dxe5 {[%clk 0:02:53.1]} 9... dxe5
{[%clk 0:02:49.5]} 10. Qd3 {[%clk 0:02:52.1]} 10... Qc7 {[%clk 0:02:32.2]} 11.
Bxf7+ {[%clk 0:02:47.1]} 11... Kxf7 {[%clk 0:02:27.3]} 12. Qc4+ {[%clk
0:02:45.6]} 12... Ke8 {[%clk 0:02:06.5]} 13. Qe6+ {[%clk 0:02:41.6]} 13... Kd8
{[%clk 0:01:43]} 14. O-O-O {[%clk 0:02:40.2]} 14... Ne8 {[%clk 0:01:16.9]} 15.
Nxe5 {[%clk 0:02:34.5]} 15... Nd6 {[%clk 0:00:52.9]} 16. Rxd6 {[%clk 0:02:31.6]}
16... Qxd6 {[%clk 0:00:53.6]} 17. Nf7+ {[%clk 0:02:31.1]} 17... Kc7 {[%clk
0:00:54.3]} 18. Nxd6 {[%clk 0:02:30.9]} 18... Bxd6 {[%clk 0:00:55.2]} 19. Rxg7
{[%clk 0:02:30.1]} 1-0

[Event "Early-Titled-Tuesday-Blitz-February-27-2024"]
[Site "Chess.com"]
[Date "2024.02.27"]
[Round "2"]
[White "NastyaHn"]
[Black "BillCoe"]
[Result "1-0"]
[WhiteElo "2458"]
[BlackElo "2094"]
[TimeControl "180+1"]
[EndTime "8:13:50 PST"]
[Termination "NastyaHn won by resignation"]

1. Nc3 {[%clk 0:03:00.9]} 1... g6 {[%clk 0:02:56.6]} 2. e4 {[%clk 0:02:59.8]}
2... Bg7 {[%clk 0:02:57.1]} 3. d4 {[%clk 0:03:00.2]} 3... d6 {[%clk 0:02:57.5]}
4. f4 {[%clk 0:03:00.1]} 4... e6 {[%clk 0:02:55.4]} 5. Nf3 {[%clk 0:03:00.4]}
5... Ne7 {[%clk 0:02:56]} 6. Be2 {[%clk 0:02:59.5]} 6... O-O {[%clk 0:02:56.6]}
7. Be3 {[%clk 0:02:59.7]} 7... b6 {[%clk 0:02:55.8]} 8. O-O {[%clk 0:02:59.8]}
8... Bb7 {[%clk 0:02:56.2]} 9. Qe1 {[%clk 0:02:56.4]} 9... Nd7 {[%clk
0:02:56.5]} 10. Rd1 {[%clk 0:02:55.9]} 10... c6 {[%clk 0:02:53]} 11. Qf2 {[%clk
0:02:54.1]} 11... Qc7 {[%clk 0:02:52.4]} 12. h4 {[%clk 0:02:42.6]} 12... h5
{[%clk 0:02:51.2]} 13. Ng5 {[%clk 0:02:36.9]} 13... d5 {[%clk 0:02:50.7]} 14. e5
{[%clk 0:02:35.6]} 14... Nf5 {[%clk 0:02:50.1]} 15. Bd3 {[%clk 0:02:32.7]} 15...
Nxe3 {[%clk 0:02:43.6]} 16. Qxe3 {[%clk 0:02:32.7]} 16... c5 {[%clk 0:02:43.2]}
17. Nb5 {[%clk 0:02:31.5]} 17... Qd8 {[%clk 0:02:36.1]} 18. Nd6 {[%clk
0:02:30.7]} 18... Bc6 {[%clk 0:02:36.3]} 19. c3 {[%clk 0:02:19.6]} 19... cxd4
{[%clk 0:02:32.2]} 20. cxd4 {[%clk 0:02:19.6]} 20... Qe7 {[%clk 0:02:32.1]} 21.
Qf3 {[%clk 0:02:14.3]} 21... f6 {[%clk 0:02:27.7]} 22. Bxg6 {[%clk 0:01:48.8]}
22... fxg5 {[%clk 0:02:27.3]} 23. Qxh5 {[%clk 0:01:48.9]} 23... Bh8 {[%clk
0:02:22.3]} 24. fxg5 {[%clk 0:01:48.3]} 24... Rxf1+ {[%clk 0:02:20.3]} 25. Rxf1
{[%clk 0:01:47.8]} 25... Rf8 {[%clk 0:02:19.7]} 26. Rf7 {[%clk 0:01:39.5]} 26...
Rxf7 {[%clk 0:02:12.4]} 27. Bxf7+ {[%clk 0:01:39.1]} 1-0

[Event "Early-Titled-Tuesday-Blitz-February-27-2024"]
[Site "Chess.com"]
[Date "2024.02.27"]
[Round "2"]
[White "ural58"]
[Black "HelvertHernandez"]
[Result "1-0"]
[WhiteElo "2451"]
[BlackElo "1996"]
[TimeControl "180+1"]
[EndTime "8:14:08 PST"]
[Termination "ural58 won by checkmate"]

1. e4 {[%clk 0:02:48.4]} 1... c5 {[%clk 0:02:51.2]} 2. b3 {[%clk 0:02:42.6]}
2... Nc6 {[%clk 0:02:49.9]} 3. Bb2 {[%clk 0:02:42.3]} 3... d6 {[%clk 0:02:48.5]}
4. f4 {[%clk 0:02:41.4]} 4... e5 {[%clk 0:02:44.7]} 5. Qf3 {[%clk 0:02:38.8]}
5... Nd4 {[%clk 0:02:42.7]} 6. Qd3 {[%clk 0:02:38.4]} 6... Qc7 {[%clk
0:02:27.8]} 7. Nf3 {[%clk 0:02:36.4]} 7... Bg4 {[%clk 0:02:24.5]} 8. Nxd4 {[%clk
0:02:34.7]} 8... cxd4 {[%clk 0:02:23.1]} 9. c3 {[%clk 0:02:32]} 9... dxc3 {[%clk
0:02:20.7]} 10. Nxc3 {[%clk 0:02:31.6]} 10... Nf6 {[%clk 0:02:17.9]} 11. f5
{[%clk 0:02:31.1]} 11... d5 {[%clk 0:01:46.6]} 12. h3 {[%clk 0:02:29.5]} 12...
dxe4 {[%clk 0:01:45.3]} 13. Qb5+ {[%clk 0:02:29.4]} 13... Nd7 {[%clk 0:01:35.3]}
14. hxg4 {[%clk 0:02:28.6]} 14... O-O-O {[%clk 0:01:33.9]} 15. Nxe4 {[%clk
0:02:21.4]} 15... Kb8 {[%clk 0:01:31]} 16. Rc1 {[%clk 0:02:18.3]} 16... Qb6
{[%clk 0:01:26.1]} 17. Qxb6 {[%clk 0:02:18.2]} 17... Nxb6 {[%clk 0:01:26]} 18.
Bxe5+ {[%clk 0:02:17.2]} 18... Ka8 {[%clk 0:01:24.6]} 19. Bb5 {[%clk 0:02:04.8]}
19... f6 {[%clk 0:01:23.2]} 20. Bc7 {[%clk 0:02:03.9]} 20... Rd4 {[%clk
0:01:15.3]} 21. Bxb6 {[%clk 0:02:02.7]} 21... axb6 {[%clk 0:01:13.9]} 22. Rc8+
{[%clk 0:01:59.4]} 22... Ka7 {[%clk 0:01:13.5]} 23. Nc3 {[%clk 0:01:59]} 23...
Rxg4 {[%clk 0:01:10.3]} 24. Be2 {[%clk 0:01:57.9]} 24... Rf4 {[%clk 0:01:04.6]}
25. Nb5+ {[%clk 0:01:57.6]} 25... Ka6 {[%clk 0:01:03.8]} 26. Ra8# {[%clk
0:01:58.5]} 1-0

[Event "Early-Titled-Tuesday-Blitz-February-27-2024"]
[Site "Chess.com"]
[Date "2024.02.27"]
[Round "2"]
[White "Shuvalov"]
[Black "Ariadna_Atreides"]
[Result "1-0"]
[WhiteElo "2488"]
[BlackElo "2197"]
[TimeControl "180+1"]
[EndTime "8:14:11 PST"]
[Termination "Shuvalov won by resignation"]

1. d4 {[%clk 0:02:47.1]} 1... Nf6 {[%clk 0:02:58.9]} 2. c4 {[%clk 0:02:46.7]}
2... e6 {[%clk 0:02:59.2]} 3. Nc3 {[%clk 0:02:46.4]} 3... Bb4 {[%clk 0:02:59.6]}
4. e3 {[%clk 0:02:45.1]} 4... O-O {[%clk 0:02:58.7]} 5. a3 {[%clk 0:02:44.7]}
5... Bxc3+ {[%clk 0:02:57.8]} 6. bxc3 {[%clk 0:02:45.6]} 6... d6 {[%clk
0:02:57.2]} 7. Ne2 {[%clk 0:02:45.6]} 7... e5 {[%clk 0:02:56.6]} 8. Ng3 {[%clk
0:02:45.6]} 8... Qe7 {[%clk 0:02:55.5]} 9. Bd3 {[%clk 0:02:43]} 9... b6 {[%clk
0:02:49.3]} 10. O-O {[%clk 0:02:38]} 10... g6 {[%clk 0:02:44.5]} 11. e4 {[%clk
0:02:35.4]} 11... Bb7 {[%clk 0:02:40.4]} 12. Bg5 {[%clk 0:02:22.6]} 12... Nbd7
{[%clk 0:02:34.7]} 13. f4 {[%clk 0:02:18.4]} 13... exd4 {[%clk 0:02:17.9]} 14.
cxd4 {[%clk 0:02:17.6]} 14... Qe6 {[%clk 0:01:21.5]} 15. e5 {[%clk 0:02:01.4]}
15... Ng4 {[%clk 0:01:14.8]} 16. f5 {[%clk 0:01:52.4]} 16... gxf5 {[%clk
0:01:04]} 17. Bxf5 {[%clk 0:01:50.2]} 17... Qxc4 {[%clk 0:00:57.3]} 18. Qxg4
{[%clk 0:01:48.7]} 1-0

[Event "Early-Titled-Tuesday-Blitz-February-27-2024"]
[Site "Chess.com"]
[Date "2024.02.27"]
[Round "2"]
[White "mightysmasher"]
[Black "Aleksandar-Topalov"]
[Result "1-0"]
[WhiteElo "2559"]
[BlackElo "2342"]
[TimeControl "180+1"]
[EndTime "8:14:16 PST"]
[Termination "mightysmasher won by resignation"]

1. e4 {[%clk 0:03:00.9]} 1... e6 {[%clk 0:02:59.1]} 2. d4 {[%clk 0:03:00.7]}
2... d5 {[%clk 0:02:59.1]} 3. exd5 {[%clk 0:03:01.6]} 3... exd5 {[%clk
0:02:58.7]} 4. Nf3 {[%clk 0:03:02.1]} 4... Bd6 {[%clk 0:02:57.4]} 5. Bd3 {[%clk
0:03:02.2]} 5... Ne7 {[%clk 0:02:57.4]} 6. O-O {[%clk 0:03:00.9]} 6... h6 {[%clk
0:02:56.3]} 7. c3 {[%clk 0:03:00.5]} 7... O-O {[%clk 0:02:56.1]} 8. Re1 {[%clk
0:03:00.1]} 8... Bg4 {[%clk 0:02:51.6]} 9. Nbd2 {[%clk 0:02:55.6]} 9... c6
{[%clk 0:02:51]} 10. Qc2 {[%clk 0:02:55.3]} 10... Nd7 {[%clk 0:02:46.9]} 11. h3
{[%clk 0:02:45.6]} 11... Bh5 {[%clk 0:02:45.6]} 12. Ne5 {[%clk 0:02:42.8]} 12...
Nxe5 {[%clk 0:02:38.6]} 13. dxe5 {[%clk 0:02:41.7]} 13... Bc5 {[%clk 0:02:38.6]}
14. Nf1 {[%clk 0:02:39.3]} 14... Bg6 {[%clk 0:02:34.2]} 15. Ng3 {[%clk
0:02:38.5]} 15... Bxd3 {[%clk 0:02:32.1]} 16. Qxd3 {[%clk 0:02:39.4]} 16... Ng6
{[%clk 0:02:31]} 17. Nf5 {[%clk 0:02:37.9]} 17... Re8 {[%clk 0:02:27.3]} 18. Qg3
{[%clk 0:02:29.4]} 18... Qd7 {[%clk 0:02:15.6]} 19. Qg4 {[%clk 0:02:25.7]} 19...
Re6 {[%clk 0:02:10.7]} 20. a4 {[%clk 0:02:15.2]} 20... Rae8 {[%clk 0:02:09.7]}
21. b4 {[%clk 0:02:13]} 21... Bb6 {[%clk 0:02:00.6]} 22. a5 {[%clk 0:02:12.5]}
22... Bc7 {[%clk 0:02:00.5]} 23. f4 {[%clk 0:02:09.6]} 23... Kh7 {[%clk
0:01:56.3]} 24. Bd2 {[%clk 0:01:58.9]} 24... f6 {[%clk 0:01:53.6]} 25. Nd4
{[%clk 0:01:46.7]} 25... R6e7 {[%clk 0:01:24.4]} 26. e6 {[%clk 0:01:37.9]} 26...
Qd6 {[%clk 0:01:24.6]} 27. Nf5 {[%clk 0:01:37.6]} 1-0

[Event "Early-Titled-Tuesday-Blitz-February-27-2024"]
[Site "Chess.com"]
[Date "2024.02.27"]
[Round "2"]
[White "MetiForce"]
[Black "DrCeltic"]
[Result "1-0"]
[WhiteElo "2901"]
[BlackElo "2602"]
[TimeControl "180+1"]
[EndTime "8:14:19 PST"]
[Termination "MetiForce won by checkmate"]

1. Nf3 {[%clk 0:03:00.9]} 1... d5 {[%clk 0:02:58.7]} 2. c4 {[%clk 0:03:00.6]}
2... c6 {[%clk 0:02:58.8]} 3. e3 {[%clk 0:03:00.4]} 3... Nf6 {[%clk 0:02:59]} 4.
Nc3 {[%clk 0:03:00.6]} 4... Bf5 {[%clk 0:02:57.4]} 5. d4 {[%clk 0:02:56.1]} 5...
e6 {[%clk 0:02:56.7]} 6. Nh4 {[%clk 0:02:55.9]} 6... Be4 {[%clk 0:02:57.1]} 7.
f3 {[%clk 0:02:55.8]} 7... Bg6 {[%clk 0:02:57.5]} 8. Bd2 {[%clk 0:02:55.2]} 8...
Nbd7 {[%clk 0:02:57.9]} 9. Qb3 {[%clk 0:02:55.2]} 9... Qc7 {[%clk 0:02:58]} 10.
O-O-O {[%clk 0:02:52.2]} 10... Be7 {[%clk 0:02:56.9]} 11. Nxg6 {[%clk
0:02:52.2]} 11... hxg6 {[%clk 0:02:57.1]} 12. cxd5 {[%clk 0:02:50.7]} 12... Nxd5
{[%clk 0:02:53.2]} 13. Kb1 {[%clk 0:02:50.5]} 13... a6 {[%clk 0:02:48.3]} 14. e4
{[%clk 0:02:50.1]} 14... Nxc3+ {[%clk 0:02:47.2]} 15. Bxc3 {[%clk 0:02:50.1]}
15... O-O-O {[%clk 0:02:39.1]} 16. h3 {[%clk 0:02:41.5]} 16... Kb8 {[%clk
0:02:35.8]} 17. Be2 {[%clk 0:02:39.1]} 17... Ka8 {[%clk 0:02:19.1]} 18. Qa4
{[%clk 0:02:34.1]} 18... Rc8 {[%clk 0:02:07.4]} 19. Ba5 {[%clk 0:02:30.7]} 19...
Qb8 {[%clk 0:02:07.7]} 20. Rd3 {[%clk 0:02:25.1]} 20... Bd8 {[%clk 0:02:02]} 21.
Rb3 {[%clk 0:02:04.1]} 21... Bxa5 {[%clk 0:01:59.5]} 22. Qxa5 {[%clk 0:02:05]}
22... Qc7 {[%clk 0:01:53.8]} 23. Qa3 {[%clk 0:01:51.7]} 23... Rh5 {[%clk
0:01:32.3]} 24. Rc1 {[%clk 0:01:47.2]} 24... Ra5 {[%clk 0:01:31.8]} 25. Qb4
{[%clk 0:01:47.5]} 25... Qd8 {[%clk 0:01:15.1]} 26. Qxb7# {[%clk 0:01:44.8]} 1-0

[Event "Early-Titled-Tuesday-Blitz-February-27-2024"]
[Site "Chess.com"]
[Date "2024.02.27"]
[Round "2"]
[White "Taran2004"]
[Black "Andrey_Klymchuk"]
[Result "0-1"]
[WhiteElo "2404"]
[BlackElo "2714"]
[TimeControl "180+1"]
[EndTime "8:14:23 PST"]
[Termination "Andrey_Klymchuk won by resignation"]

1. e4 {[%clk 0:03:00.9]} 1... c5 {[%clk 0:02:59.7]} 2. Nf3 {[%clk 0:03:00.2]}
2... Nc6 {[%clk 0:03:00]} 3. Bb5 {[%clk 0:02:59.5]} 3... Nf6 {[%clk 0:02:59.9]}
4. e5 {[%clk 0:02:55.5]} 4... Nd5 {[%clk 0:02:59.5]} 5. c4 {[%clk 0:02:54]} 5...
Nc7 {[%clk 0:02:59]} 6. O-O {[%clk 0:02:41.6]} 6... g6 {[%clk 0:02:56.1]} 7. Nc3
{[%clk 0:02:37.8]} 7... Bg7 {[%clk 0:02:56.2]} 8. Re1 {[%clk 0:02:36.8]} 8...
O-O {[%clk 0:02:55.9]} 9. d4 {[%clk 0:02:33.5]} 9... cxd4 {[%clk 0:02:55.4]} 10.
Nxd4 {[%clk 0:02:32.4]} 10... Nxe5 {[%clk 0:02:54.9]} 11. Bf4 {[%clk 0:02:31.2]}
11... d6 {[%clk 0:02:50]} 12. Qe2 {[%clk 0:02:22.2]} 12... Bg4 {[%clk 0:02:40]}
13. f3 {[%clk 0:02:00.1]} 13... Ne6 {[%clk 0:02:38.6]} 14. Nxe6 {[%clk
0:01:57.2]} 14... Bxe6 {[%clk 0:02:38.1]} 15. Rad1 {[%clk 0:01:53.8]} 15... a6
{[%clk 0:02:36.6]} 16. Bxe5 {[%clk 0:01:49.7]} 16... Bxe5 {[%clk 0:02:34.7]} 17.
Ba4 {[%clk 0:01:48.5]} 17... Rc8 {[%clk 0:02:30.9]} 18. Nd5 {[%clk 0:01:45]}
18... Bxd5 {[%clk 0:02:03]} 19. Rxd5 {[%clk 0:01:45.9]} 19... Bf6 {[%clk
0:01:57.4]} 20. Bc2 {[%clk 0:01:38]} 20... Qb6+ {[%clk 0:01:53.7]} 21. Kh1
{[%clk 0:01:26.7]} 21... Qxb2 {[%clk 0:01:53.3]} 22. Rb1 {[%clk 0:01:23.7]}
22... Qxa2 {[%clk 0:01:53.3]} 23. Rxb7 {[%clk 0:01:13.2]} 23... Qxc4 {[%clk
0:01:50.8]} 24. Qxc4 {[%clk 0:01:11.9]} 24... Rxc4 {[%clk 0:01:51.7]} 25. Bb3
{[%clk 0:01:10.1]} 25... Rc1+ {[%clk 0:01:49.5]} 26. Rd1 {[%clk 0:01:09.8]}
26... Rfc8 {[%clk 0:01:46.7]} 0-1

[Event "Early-Titled-Tuesday-Blitz-February-27-2024"]
[Site "Chess.com"]
[Date "2024.02.27"]
[Round "2"]
[White "MyDream003"]
[Black "inagreV"]
[Result "1-0"]
[WhiteElo "2701"]
[BlackElo "2401"]
[TimeControl "180+1"]
[EndTime "8:14:27 PST"]
[Termination "MyDream003 won by resignation"]

1. Nf3 {[%clk 0:03:00.9]} 1... Nf6 {[%clk 0:02:58.6]} 2. d4 {[%clk 0:03:00.9]}
2... g6 {[%clk 0:02:58.7]} 3. c4 {[%clk 0:03:00.1]} 3... Bg7 {[%clk 0:02:58.9]}
4. Nc3 {[%clk 0:02:59.9]} 4... O-O {[%clk 0:02:59.3]} 5. e4 {[%clk 0:02:58.9]}
5... d6 {[%clk 0:02:59.8]} 6. Be2 {[%clk 0:02:59]} 6... e5 {[%clk 0:03:00]} 7.
O-O {[%clk 0:02:59]} 7... Bg4 {[%clk 0:03:00]} 8. d5 {[%clk 0:02:57.1]} 8... a5
{[%clk 0:02:59.7]} 9. Be3 {[%clk 0:02:56.8]} 9... Na6 {[%clk 0:02:59.5]} 10. Nd2
{[%clk 0:02:56.4]} 10... Bd7 {[%clk 0:02:59]} 11. a3 {[%clk 0:02:54.9]} 11... b6
{[%clk 0:02:52.8]} 12. Rb1 {[%clk 0:02:53.2]} 12... Nc5 {[%clk 0:02:31.9]} 13.
b4 {[%clk 0:02:50.2]} 13... axb4 {[%clk 0:02:23.9]} 14. axb4 {[%clk 0:02:51.1]}
14... Na4 {[%clk 0:02:23.8]} 15. Nxa4 {[%clk 0:02:49.1]} 15... Bxa4 {[%clk
0:02:20.2]} 16. Qc1 {[%clk 0:02:48.7]} 16... Bd7 {[%clk 0:02:18.2]} 17. h3
{[%clk 0:02:46.5]} 17... Ne8 {[%clk 0:02:13.4]} 18. c5 {[%clk 0:02:45.7]} 18...
bxc5 {[%clk 0:02:13.2]} 19. bxc5 {[%clk 0:02:45.1]} 19... f5 {[%clk 0:02:14.1]}
20. c6 {[%clk 0:02:33.8]} 20... Bc8 {[%clk 0:02:01.5]} 21. f3 {[%clk 0:02:34.1]}
21... h5 {[%clk 0:01:54]} 22. exf5 {[%clk 0:02:05.3]} 22... gxf5 {[%clk
0:01:52.6]} 23. f4 {[%clk 0:02:00.6]} 23... exf4 {[%clk 0:01:46]} 24. Bxf4
{[%clk 0:02:01.5]} 24... Qh4 {[%clk 0:01:19.5]} 25. Nf3 {[%clk 0:01:59.8]} 25...
Qf6 {[%clk 0:01:15.3]} 26. Kh1 {[%clk 0:01:55.8]} 26... Ra2 {[%clk 0:01:13.9]}
27. Bc4 {[%clk 0:01:54.1]} 27... Qg6 {[%clk 0:00:54.3]} 28. Bxa2 {[%clk
0:01:53.7]} 1-0

[Event "Early-Titled-Tuesday-Blitz-February-27-2024"]
[Site "Chess.com"]
[Date "2024.02.27"]
[Round "2"]
[White "FernandoArauzAlonso"]
[Black "nihalsarin"]
[Result "0-1"]
[WhiteElo "2660"]
[BlackElo "3203"]
[TimeControl "180+1"]
[EndTime "8:14:38 PST"]
[Termination "nihalsarin won on time"]

1. Nf3 {[%clk 0:02:40.1]} 1... Nf6 {[%clk 0:02:57.3]} 2. g3 {[%clk 0:02:40]}
2... b6 {[%clk 0:02:56.4]} 3. Bg2 {[%clk 0:02:40.1]} 3... Bb7 {[%clk 0:02:57.3]}
4. O-O {[%clk 0:02:39.8]} 4... g6 {[%clk 0:02:56.5]} 5. d3 {[%clk 0:02:40.1]}
5... Bg7 {[%clk 0:02:54.6]} 6. Nbd2 {[%clk 0:02:34.9]} 6... d5 {[%clk
0:02:52.1]} 7. e4 {[%clk 0:02:32.1]} 7... dxe4 {[%clk 0:02:51.8]} 8. Ng5 {[%clk
0:02:32.1]} 8... O-O {[%clk 0:02:50.8]} 9. Ngxe4 {[%clk 0:02:28]} 9... Nxe4
{[%clk 0:02:50.9]} 10. Nxe4 {[%clk 0:02:22.7]} 10... Qc8 {[%clk 0:02:51.1]} 11.
Qe2 {[%clk 0:02:19.4]} 11... c5 {[%clk 0:02:50.4]} 12. Bg5 {[%clk 0:02:13.8]}
12... Nc6 {[%clk 0:02:49.1]} 13. c3 {[%clk 0:01:56.8]} 13... Qd7 {[%clk
0:02:44.9]} 14. Rad1 {[%clk 0:01:56.3]} 14... Rad8 {[%clk 0:02:44.5]} 15. Rd2
{[%clk 0:01:27.3]} 15... f5 {[%clk 0:02:41.6]} 16. Rfd1 {[%clk 0:01:19.9]} 16...
fxe4 {[%clk 0:02:40.2]} 17. dxe4 {[%clk 0:01:19.7]} 17... Qe6 {[%clk 0:02:39.9]}
18. f3 {[%clk 0:01:09.4]} 18... Rxd2 {[%clk 0:02:35.6]} 19. Rxd2 {[%clk
0:01:06.7]} 19... Qxa2 {[%clk 0:02:35.7]} 20. Bh3 {[%clk 0:01:04.2]} 20... Bc8
{[%clk 0:02:34]} 21. Bxc8 {[%clk 0:01:01.9]} 21... Rxc8 {[%clk 0:02:34.9]} 22.
Qb5 {[%clk 0:00:59.3]} 22... Ne5 {[%clk 0:02:29.5]} 23. Kg2 {[%clk 0:00:57.7]}
23... Qc4 {[%clk 0:02:30.1]} 24. Qxc4+ {[%clk 0:00:07.5]} 24... Nxc4 {[%clk
0:02:31]} 25. Rd7 {[%clk 0:00:07.7]} 25... Nxb2 {[%clk 0:02:30.3]} 0-1

[Event "Early-Titled-Tuesday-Blitz-February-27-2024"]
[Site "Chess.com"]
[Date "2024.02.27"]
[Round "2"]
[White "Chess_Gainz"]
[Black "ClauSanLuis"]
[Result "1-0"]
[WhiteElo "2552"]
[BlackElo "2288"]
[TimeControl "180+1"]
[EndTime "8:14:38 PST"]
[Termination "Chess_Gainz won by resignation"]

1. e4 {[%clk 0:03:00.9]} 1... c5 {[%clk 0:02:57.8]} 2. Nf3 {[%clk 0:03:00.9]}
2... Nc6 {[%clk 0:02:57.2]} 3. d4 {[%clk 0:03:00.9]} 3... cxd4 {[%clk
0:02:55.9]} 4. Nxd4 {[%clk 0:03:01.5]} 4... e5 {[%clk 0:02:54.3]} 5. Nb5 {[%clk
0:03:01.8]} 5... d6 {[%clk 0:02:54.4]} 6. N1c3 {[%clk 0:03:02]} 6... a6 {[%clk
0:02:54.7]} 7. Na3 {[%clk 0:03:02.5]} 7... b5 {[%clk 0:02:55.4]} 8. Nd5 {[%clk
0:03:02.5]} 8... Nge7 {[%clk 0:02:55.7]} 9. c4 {[%clk 0:03:02.7]} 9... Nd4
{[%clk 0:02:55]} 10. Bd3 {[%clk 0:03:02.1]} 10... Nxd5 {[%clk 0:02:54.5]} 11.
cxd5 {[%clk 0:03:02.6]} 11... Be7 {[%clk 0:02:52.3]} 12. O-O {[%clk 0:03:02.7]}
12... Bg5 {[%clk 0:02:52.1]} 13. Nc2 {[%clk 0:03:00.3]} 13... Nxc2 {[%clk
0:02:45.6]} 14. Qxc2 {[%clk 0:03:00]} 14... O-O {[%clk 0:02:44.8]} 15. Qc6
{[%clk 0:02:49.3]} 15... Ra7 {[%clk 0:02:39.5]} 16. Bxg5 {[%clk 0:02:49.3]}
16... Qxg5 {[%clk 0:02:39.1]} 17. Rfd1 {[%clk 0:02:28.8]} 17... Bg4 {[%clk
0:02:35.9]} 18. Re1 {[%clk 0:02:17.4]} 18... Bf3 {[%clk 0:02:35.2]} 19. Bf1
{[%clk 0:02:17.5]} 19... f5 {[%clk 0:02:29.5]} 20. exf5 {[%clk 0:02:10.4]} 20...
Raf7 {[%clk 0:02:27.8]} 21. Kh1 {[%clk 0:01:58.7]} 21... e4 {[%clk 0:01:48.2]}
22. gxf3 {[%clk 0:01:46.6]} 22... exf3 {[%clk 0:01:47.5]} 23. Re8 {[%clk
0:01:38.6]} 23... Qxf5 {[%clk 0:01:38.1]} 24. Rae1 {[%clk 0:01:33.9]} 24... h6
{[%clk 0:01:28.7]} 25. Qxd6 {[%clk 0:01:30.1]} 25... Kh7 {[%clk 0:01:26.4]} 26.
Rxf8 {[%clk 0:01:26.2]} 26... Rxf8 {[%clk 0:01:25.8]} 27. Qe6 {[%clk 0:01:19.4]}
27... Qc2 {[%clk 0:01:18.9]} 28. Qe4+ {[%clk 0:01:19.5]} 28... Qxe4 {[%clk
0:01:18.7]} 29. Rxe4 {[%clk 0:01:19.8]} 1-0